bitfinex-derivatives/quotes_BTCF0:USTF0_20210705
["timestamp","ask_amount","ask_price","bid_price","bid_amount"]
[1625492805986,0.3496835,33710.0,33708.0,1.98820621]
[1625492806587,0.3496835,33710.0,33709.0,0.33676166]
[1625492807293,0.87410973,33711.0,33709.0,0.50494099]
[1625492807587,0.93310973,33711.0,33709.0,0.50494099]
[1625492807787,0.99210973,33711.0,33709.0,0.50494099]
[1625492807887,0.93310973,33711.0,33709.0,0.50494099]
[1625492808244,1.63236699,33711.0,33709.0,0.33674281]
[1625492808338,0.87420265,33710.0,33709.0,0.33674281]
[1625492808437,0.93320265,33710.0,33709.0,0.33674281]
[1625492808788,0.99220265,33710.0,33709.0,0.33674281]
[1625492808988,2.38993935,33710.0,33708.0,0.48115088]
[1625492809391,1.2233203,33709.0,33708.0,0.48115088]
[1625492809593,1.3413203,33709.0,33708.0,0.48115088]
[1625492809794,1.2823203,33709.0,33708.0,0.48115088]
[1625492809893,2.27176852,33709.0,33708.0,0.48115088]
[1625492810241,2.33076852,33709.0,33708.0,0.48115088]
[1625492810341,0.40860777,33709.0,33708.0,0.81771893]
[1625492810850,0.059,33709.0,33708.0,0.48115088]
[1625492811249,0.118,33709.0,33708.0,0.48115088]
[1625492811350,0.059,33709.0,33708.0,0.48115088]
[1625492811549,0.059,33709.0,33708.0,0.81749831]
[1625492811899,1.28201901,33709.0,33708.0,0.48115088]
[1625492811999,1.22301901,33709.0,33708.0,0.48115088]
[1625492812301,0.34950255,33709.0,33708.0,0.48115088]
[1625492812758,0.34939372,33711.0,33708.0,0.81713127]
[1625492813254,0.40839372,33711.0,33708.0,0.81713127]
[1625492813757,0.34939492,33710.0,33708.0,0.81713127]
[1625492813854,0.40839492,33710.0,33708.0,0.81713127]
[1625492814116,0.87339884,33711.0,33708.0,0.81713127]
[1625492814178,0.87339884,33711.0,33709.0,0.00392641]
[1625492814361,0.87339884,33711.0,33709.0,0.06292641]
[1625492814461,0.24057544,33713.0,33710.0,2.18154648]
[1625492814657,0.24057544,33713.0,33710.0,2.24054648]
[1625492814758,0.24057544,33713.0,33711.0,0.83874803]
[1625492814957,0.24057544,33713.0,33711.0,0.89774803]
[1625492815258,0.24057544,33713.0,33712.0,0.33604263]
[1625492815858,0.24057544,33713.0,33712.0,0.57661807]
[1625492818216,0.24057544,33713.0,33712.0,0.24057544]
[1625492820671,0.24057544,33713.0,33709.0,0.84109443]
[1625492820672,0.24057544,33713.0,33710.0,0.84089233]
[1625492821122,0.24057544,33713.0,33710.0,0.33635693]
[1625492821222,0.24057544,33713.0,33709.0,0.84121807]
[1625492821371,0.24057544,33713.0,33709.0,0.90021807]
[1625492821571,0.24057544,33713.0,33710.0,0.00392738]
[1625492822078,0.35857544,33713.0,33709.0,0.33648723]
[1625492822178,0.57542544,33713.0,33709.0,0.33648723]
[1625492822628,0.8724048,33711.0,33708.0,0.48115088]
[1625492822826,0.9314048,33711.0,33708.0,0.48115088]
[1625492823027,0.9904048,33711.0,33708.0,0.48115088]
[1625492823226,0.9314048,33711.0,33708.0,0.48115088]
[1625492823327,0.34900482,33710.0,33709.0,0.00392789]
[1625492823427,0.34900482,33710.0,33709.0,0.31885789]
[1625492823527,0.40800482,33710.0,33709.0,0.31885789]
[1625492823630,0.46700482,33710.0,33709.0,0.31885789]
[1625492823980,0.118,33710.0,33709.0,0.31885789]
[1625492824628,0.059,33710.0,33709.0,0.31885789]
[1625492825482,0.34900379,33712.0,33709.0,0.31885789]
[1625492825581,0.059,33710.0,33709.0,0.00392789]
[1625492825782,0.118,33710.0,33709.0,0.00392789]
[1625492826133,0.46700424,33710.0,33709.0,0.00392789]
[1625492826584,0.118,33710.0,33709.0,0.00392789]
[1625492827286,0.46702239,33710.0,33709.0,0.00392789]
[1625492828939,0.6414624,33710.0,33709.0,0.00392789]
[1625492831248,1.339524,33710.0,33709.0,0.00392789]
[1625492831750,0.99057997,33710.0,33709.0,0.00392789]
[1625492832202,0.6414624,33710.0,33709.0,0.00392789]
[1625492832762,1.33970951,33710.0,33709.0,0.00392789]
[1625492833911,1.35551062,33710.0,33709.0,0.00392789]
[1625492834214,2.40293652,33710.0,33709.0,0.00392789]
[1625492834410,2.40293652,33710.0,33708.0,0.24057544]
[1625492834573,3.62498504,33710.0,33708.0,0.24057544]
[1625492834963,0.01580221,33709.0,33708.0,0.24057544]
[1625492835062,3.62712804,33709.0,33705.0,0.01]
[1625492835413,1.2229301,33706.0,33705.0,0.01]
[1625492835511,2.51779115,33706.0,33704.0,0.24057544]
[1625492835611,2.63579115,33706.0,33704.0,0.24057544]
[1625492835710,2.63579115,33706.0,33705.0,0.00392805]
[1625492836010,3.11694203,33706.0,33705.0,0.00392805]
[1625492836263,3.11694203,33706.0,33704.0,0.24057544]
[1625492836513,3.11694203,33706.0,33705.0,0.00392813]
[1625492836713,1.89401193,33706.0,33705.0,0.00392813]
[1625492836924,1.89401193,33706.0,33701.0,0.84191948]
[1625492837014,1.89401193,33706.0,33701.0,0.33694906]
[1625492837015,3.117103,33706.0,33701.0,0.33694906]
[1625492837523,0.87374126,33703.0,33702.0,0.00392815]
[1625492837715,0.99174126,33703.0,33702.0,0.00392815]
[1625492837918,0.46753144,33703.0,33702.0,0.34109648]
[1625492838016,0.70810688,33703.0,33702.0,0.34109648]
[1625492838217,1.58218511,33703.0,33702.0,0.00392815]
[1625492839072,1.52318511,33703.0,33702.0,0.00392815]
[1625492839318,1.1737059,33703.0,33702.0,0.34109878]
[1625492839870,0.29957544,33703.0,33702.0,1.01527678]
[1625492839971,0.29957544,33703.0,33702.0,1.18373965]
[1625492840220,0.24057544,33703.0,33702.0,1.18373965]
[1625492840320,0.29957544,33703.0,33702.0,1.18373965]
[1625492840428,0.29957544,33703.0,33702.0,2.19492299]
[1625492840838,0.29957544,33703.0,33702.0,1.18373965]
[1625492841173,0.64940817,33703.0,33702.0,1.18373965]
[1625492841576,0.29957544,33703.0,33702.0,2.19530805]
[1625492843648,0.29957544,33703.0,33702.0,3.37562859]
[1625492843739,0.24057544,33703.0,33702.0,3.37562859]
[1625492845032,0.24057544,33703.0,33702.0,3.52352859]
[1625492845434,0.24057544,33703.0,33702.0,4.87157674]
[1625492845737,0.24057544,33703.0,33702.0,4.78267674]
[1625492847245,0.24057544,33703.0,33702.0,6.29832146]
[1625492849114,0.24057544,33703.0,33702.0,4.78267674]
[1625492849189,0.24057544,33703.0,33702.0,4.79359939]
[1625492849441,0.24057544,33703.0,33702.0,6.30934468]
[1625492849794,0.24057544,33703.0,33702.0,6.25034468]
[1625492849997,0.24057544,33703.0,33702.0,6.30934468]
[1625492850143,0.24057544,33703.0,33702.0,6.29842203]
[1625492850447,0.24057544,33703.0,33702.0,6.29449388]
[1625492850544,0.24057544,33703.0,33702.0,6.29842037]
[1625492850746,0.24057544,33703.0,33702.0,4.78267508]
[1625492851947,0.24057544,33703.0,33702.0,6.30011392]
[1625492852397,0.24057544,33703.0,33702.0,6.31104591]
[1625492855906,0.24057544,33703.0,33702.0,6.30011392]
[1625492857209,0.24057544,33703.0,33702.0,6.31105393]
[1625492857308,0.24057544,33703.0,33702.0,6.61646393]
[1625492866776,0.24057544,33703.0,33702.0,6.55746393]
[1625492866875,0.24057544,33703.0,33702.0,6.25205393]
[1625492866975,0.24057544,33703.0,33702.0,6.24111392]
[1625492867074,0.24057544,33703.0,33702.0,4.72367508]
[1625492868178,0.24057544,33703.0,33702.0,4.78267508]
[1625492868278,0.24057544,33703.0,33702.0,4.84167508]
[1625492868379,0.24057544,33703.0,33702.0,4.78267508]
[1625492868480,0.24057544,33703.0,33702.0,6.31019405]
[1625492868579,0.24057544,33703.0,33702.0,6.67353405]
[1625492868682,0.24057544,33703.0,33702.0,6.61453405]
[1625492868881,0.24057544,33703.0,33702.0,6.67353405]
[1625492869030,0.24057544,33703.0,33702.0,6.61453405]
[1625492869130,0.24057544,33703.0,33702.0,6.67353405]
[1625492869231,0.24057544,33703.0,33702.0,6.61453405]
[1625492870135,0.24057544,33703.0,33702.0,6.31019405]
[1625492870585,0.24057544,33703.0,33702.0,6.25119405]
[1625492870988,0.24057544,33703.0,33702.0,6.24026499]
[1625492871738,0.24057544,33703.0,33702.0,4.72367508]
[1625492872950,0.29957544,33703.0,33702.0,4.72367508]
[1625492873195,0.65030304,33703.0,33702.0,4.72367508]
[1625492873568,0.82557865,33703.0,33702.0,4.72367508]
[1625492873645,0.76657865,33703.0,33702.0,4.72367508]
[1625492873848,1.11730907,33703.0,33702.0,4.72367508]
[1625492873944,1.17630907,33703.0,33702.0,4.72367508]
[1625492874446,1.11730907,33703.0,33702.0,4.72367508]
[1625492874547,1.17630907,33703.0,33702.0,4.72367508]
[1625492874654,1.11730907,33703.0,33702.0,4.72367508]
[1625492874758,1.17630907,33703.0,33702.0,4.72367508]
[1625492875000,1.11730907,33703.0,33702.0,4.72367508]
[1625492875099,1.17630907,33703.0,33702.0,4.72367508]
[1625492875203,0.82557865,33703.0,33702.0,4.72367508]
[1625492875754,1.17636982,33703.0,33702.0,4.72367508]
[1625492876253,1.11736982,33703.0,33702.0,4.72367508]
[1625492876356,1.17636982,33703.0,33702.0,4.72367508]
[1625492876456,1.5269916,33703.0,33702.0,4.72367508]
[1625492876904,1.4679916,33703.0,33702.0,4.72367508]
[1625492877104,1.5269916,33703.0,33702.0,4.72367508]
[1625492877355,1.4679916,33703.0,33702.0,4.72367508]
[1625492877855,1.5269916,33703.0,33702.0,4.72367508]
[1625492878205,1.4679916,33703.0,33702.0,4.72367508]
[1625492878606,1.5269916,33703.0,33702.0,4.72367508]
[1625492879010,2.57942625,33703.0,33702.0,4.72367508]
[1625492879960,2.57942625,33703.0,33702.0,4.71974859]
[1625492880314,1.5269916,33703.0,33702.0,4.71974859]
[1625492880414,1.5269916,33703.0,33702.0,4.72367528]
[1625492880764,2.57943536,33703.0,33702.0,4.72367528]
[1625492882869,2.63843536,33703.0,33702.0,4.72367528]
[1625492883620,2.63843536,33703.0,33702.0,3.37562713]
[1625492883980,3.86621942,33703.0,33702.0,2.19530659]
[1625492884422,3.88202344,33703.0,33702.0,2.19530659]
[1625492884522,5.28518282,33703.0,33702.0,2.19530659]
[1625492884922,5.2693788,33703.0,33702.0,2.19530659]
[1625492885223,5.28518316,33703.0,33702.0,2.19530659]
[1625492885523,5.2693788,33703.0,33702.0,2.19530659]
[1625492886474,5.2693788,33703.0,33702.0,1.18373819]
[1625492886826,5.2693788,33703.0,33702.0,2.19755698]
[1625492887576,3.86621942,33703.0,33702.0,2.19755698]
[1625492887679,3.86621942,33703.0,33702.0,2.19363029]
[1625492887930,3.86621942,33703.0,33702.0,2.19754425]
[1625492889534,3.86621942,33703.0,33702.0,1.18372546]
[1625492890337,5.26872505,33703.0,33702.0,1.18372546]
[1625492890436,5.26872505,33703.0,33702.0,0.40252546]
[1625492890939,5.26872505,33703.0,33702.0,0.3986115]
[1625492891039,5.26872505,33703.0,33701.0,1.01344347]
[1625492891151,5.26872505,33703.0,33702.0,0.3418364]
[1625492891387,5.26872505,33703.0,33702.0,0.33792256]
[1625492891738,5.26872505,33703.0,33700.0,1.01376768]
[1625492892140,2.27871741,33701.0,33700.0,1.01376768]
[1625492892340,2.63729285,33701.0,33700.0,1.01376768]
[1625492892439,2.63729285,33701.0,33700.0,1.01768138]
[1625492893010,2.63729285,33701.0,33700.0,0.51738138]
[1625492893363,2.65315066,33701.0,33700.0,0.51346768]
[1625492893492,4.05542414,33701.0,33697.0,1.18312789]
[1625492893841,4.05542414,33701.0,33683.0,0.057]
[1625492893842,2.6285854,33698.0,33696.0,0.33844251]
[1625492893950,2.9210454,33698.0,33696.0,0.33844251]
[1625492894041,3.5390454,33698.0,33696.0,0.33844251]
[1625492894142,2.6287186,33697.0,33695.0,0.33849741]
[1625492894244,0.5,33696.0,33695.0,0.33849741]
[1625492894346,0.98115088,33696.0,33695.0,0.33849741]
[1625492894479,1.04015088,33696.0,33695.0,0.33849741]
[1625492894549,3.72790868,33696.0,33694.0,0.33867053]
[1625492894663,3.7437686,33696.0,33694.0,0.33867053]
[1625492894752,3.2437686,33696.0,33694.0,0.33867053]
[1625492894855,0.01585988,33695.0,33694.0,0.33867053]
[1625492894974,2.64467785,33695.0,33691.0,0.33894644]
[1625492895149,2.62881797,33695.0,33691.0,0.33894644]
[1625492895251,3.18781797,33695.0,33691.0,0.33894644]
[1625492895552,1.40200913,33693.0,33692.0,0.33891958]
[1625492895851,1.46100913,33693.0,33692.0,0.33891958]
[1625492895948,1.52000913,33693.0,33692.0,0.33891958]
[1625492896049,1.52000913,33693.0,33690.0,0.33867539]
[1625492896050,2.74559682,33693.0,33690.0,0.33867539]
[1625492896349,0.48115088,33691.0,33690.0,0.33867539]
[1625492896448,0.81776088,33691.0,33690.0,0.33867539]
[1625492896548,0.81776088,33691.0,33689.0,0.33881387]
[1625492896549,2.16136939,33691.0,33689.0,0.33881387]
[1625492897047,1.22553759,33690.0,33689.0,0.33881387]
[1625492897101,1.28453759,33690.0,33689.0,0.33881387]
[1625492897313,1.34353759,33690.0,33689.0,0.33881387]
[1625492897403,0.118,33690.0,33686.0,1.18517429]
[1625492897804,0.35027513,33687.0,33686.0,1.18517429]
[1625492897904,0.46827513,33687.0,33686.0,1.18517429]
[1625492898304,0.46827513,33687.0,33684.0,1.3544849]
[1625492898305,0.46827513,33687.0,33684.0,1.18470443]
[1625492898406,0.48115088,33685.0,33684.0,1.18470443]
[1625492898505,0.54015088,33685.0,33684.0,1.18470443]
[1625492898755,0.59915088,33685.0,33684.0,1.18470443]
[1625492900661,0.59915088,33685.0,33683.0,1.18381908]
[1625492901460,0.59915088,33685.0,33684.0,1.18353457]
[1625492901760,0.54015088,33685.0,33684.0,1.18353457]
[1625492901860,0.54015088,33685.0,33683.0,1.18291161]
[1625492902410,0.24057544,33684.0,33683.0,1.18291161]
[1625492902514,0.29957544,33684.0,33683.0,1.18291161]
[1625492903171,0.24057544,33684.0,33683.0,1.18291161]
[1625492903372,0.29957544,33684.0,33683.0,1.18291161]
[1625492906027,0.29957544,33684.0,33682.0,1.1816149]
[1625492906430,0.29957544,33684.0,33681.0,1.35078323]
[1625492906431,0.29957544,33684.0,33683.0,1.181589]
[1625492906578,0.35857544,33684.0,33683.0,1.181589]
[1625492906704,0.29957544,33684.0,33683.0,1.181589]
[1625492906826,0.24057544,33684.0,33683.0,1.240589]
[1625492906952,0.24057544,33684.0,33683.0,1.24450331]
[1625492907229,0.24057544,33684.0,33683.0,1.30350331]
[1625492907409,0.24057544,33684.0,33683.0,2.65211804]
[1625492907633,0.057,33690.0,33683.0,2.65211804]
[1625492907735,0.24057544,33691.0,33683.0,2.66302863]
[1625492907933,0.24057544,33691.0,33683.0,4.17902612]
[1625492908054,0.24057544,33691.0,33684.0,0.01091059]
[1625492908134,0.24057544,33691.0,33684.0,0.0148243]
[1625492908235,0.24057544,33691.0,33684.0,0.1328243]
[1625492908338,0.24057544,33691.0,33690.0,1.17911095]
[1625492908434,0.24057544,33691.0,33690.0,1.41968639]
[1625492908746,0.24057544,33691.0,33690.0,1.42360013]
[1625492908837,0.24057544,33691.0,33690.0,0.24448918]
[1625492910991,0.24057544,33691.0,33690.0,0.24057544]
[1625492911194,0.24057544,33691.0,33690.0,0.24448909]
[1625492912342,0.35857544,33691.0,33690.0,0.24448909]
[1625492912610,0.35857544,33691.0,33689.0,1.1793616]
[1625492912676,0.35857544,33691.0,33687.0,1.18035759]
[1625492912754,0.61828544,33691.0,33687.0,1.18035759]
[1625492913049,0.61828544,33691.0,33688.0,0.3375544]
[1625492914498,0.24057544,33689.0,33688.0,0.3375544]
[1625492914599,0.35857544,33689.0,33688.0,0.3375544]
[1625492915502,0.35857544,33689.0,33687.0,0.33954562]
[1625492918104,0.35857544,33689.0,33686.0,0.33994057]
[1625492918401,0.29957544,33689.0,33686.0,0.33994057]
[1625492918854,0.35857544,33689.0,33686.0,0.33994057]
[1625492919054,0.35857544,33689.0,33687.0,0.00391377]
[1625492919253,0.35857544,33689.0,33687.0,0.3436588]
[1625492919555,0.35857544,33689.0,33688.0,0.00391377]
[1625492920208,0.35857544,33689.0,33688.0,0.34342091]
[1625492922313,0.35857544,33689.0,33688.0,0.00391377]
[1625492922814,0.35857544,33689.0,33685.0,1.19228299]
[1625492923019,0.35857544,33689.0,33688.0,0.00391355]
[1625492923322,0.35857544,33689.0,33686.0,0.00391355]
[1625492923521,0.35857544,33689.0,33687.0,1.01872226]
[1625492923819,0.35857544,33689.0,33688.0,0.00391355]
[1625492924122,0.29957544,33689.0,33688.0,0.00391355]
[1625492924822,0.29957544,33689.0,33688.0,0.06291355]
[1625492924985,0.29957544,33689.0,33688.0,0.33630355]
[1625492925023,0.29957544,33689.0,33688.0,1.35510402]
[1625492925324,0.29957544,33689.0,33688.0,3.89946119]
[1625492925923,0.29957544,33689.0,33688.0,3.84046119]
[1625492926574,0.29957544,33689.0,33688.0,4.08103663]
[1625492927725,0.29957544,33689.0,33688.0,2.72404614]
[1625492929679,0.29957544,33689.0,33688.0,4.08310343]
[1625492929979,0.29957544,33689.0,33688.0,2.72404614]
[1625492930881,0.29957544,33689.0,33688.0,4.0832964]
[1625492931382,0.29957544,33689.0,33688.0,2.72404614]
[1625492934437,0.51519544,33689.0,33688.0,2.72404614]
[1625492935042,0.57419544,33689.0,33688.0,2.72404614]
[1625492935845,0.57419544,33689.0,33688.0,1.53667946]
[1625492935949,0.57419544,33689.0,33688.0,1.26328946]
[1625492937300,0.92424315,33689.0,33688.0,1.26328946]
[1625492938717,0.92424315,33689.0,33688.0,1.02271402]
[1625492938803,0.57419544,33689.0,33688.0,1.02271402]
[1625492940656,0.81477088,33689.0,33688.0,1.02271402]
[1625492941058,1.86535032,33689.0,33688.0,1.02271402]
[1625492941964,0.81477088,33689.0,33688.0,1.02271402]
[1625492942965,0.059,33689.0,33688.0,1.25705402]
[1625492943164,1.05057416,33690.0,33688.0,1.25705402]
[1625492943367,1.05057416,33690.0,33688.0,1.31605402]
[1625492943667,0.35029707,33690.0,33689.0,0.00391323]
[1625492943867,0.35029707,33690.0,33689.0,0.06291323]
[1625492944118,0.35029707,33690.0,33689.0,0.07396382]
[1625492944320,0.35032717,33696.0,33689.0,5.19257677]
[1625492944420,0.35032717,33696.0,33695.0,4.8115]
[1625492944520,0.35032717,33696.0,33695.0,5.13067]
[1625492944717,0.35032717,33696.0,33695.0,5.13458276]
[1625492944819,0.35032717,33696.0,33695.0,5.61573364]
[1625492944920,0.3503234,33697.0,33695.0,9.19874667]
[1625492945018,0.4093234,33697.0,33695.0,9.19874667]
[1625492945221,0.4093234,33697.0,33696.0,0.0039126]
[1625492945420,0.4093234,33697.0,33696.0,2.2209786]
[1625492945769,0.3503234,33697.0,33696.0,2.2209786]
[1625492945868,0.3503234,33697.0,33696.0,3.58504206]
[1625492946221,1.29138698,33699.0,33696.0,3.58504206]
[1625492946222,0.35032353,33698.0,33696.0,3.58504206]
[1625492946521,0.40932353,33698.0,33696.0,3.58504206]
[1625492946641,0.40932353,33698.0,33697.0,0.0039128]
[1625492946722,0.059,33698.0,33697.0,2.22064393]
[1625492947525,0.40932497,33698.0,33697.0,2.22064393]
[1625492947829,0.059,33698.0,33697.0,2.22064393]
[1625492949885,1.05113066,33698.0,33697.0,2.22064393]
[1625492949985,1.05113066,33698.0,33697.0,2.27964393]
[1625492950185,0.35042006,33698.0,33697.0,3.58571737]
[1625492950636,0.17529486,33698.0,33697.0,4.26790236]
[1625492951286,0.76628418,33699.0,33697.0,4.26790236]
[1625492951638,0.94138907,33699.0,33698.0,2.89911272]
[1625492951739,0.94138907,33699.0,33698.0,2.90302539]
[1625492952241,1.00038907,33699.0,33698.0,2.90302539]
[1625492953243,0.94138907,33699.0,33698.0,2.90302539]
[1625492954394,1.00038907,33699.0,33698.0,2.90302539]
[1625492954798,1.00038907,33699.0,33698.0,1.70927309]
[1625492954897,2.0511678,33699.0,33698.0,1.70927309]
[1625492955551,2.0511678,33699.0,33698.0,1.70536042]
[1625492955947,2.1101678,33699.0,33698.0,1.70536042]
[1625492956398,2.1101678,33699.0,33698.0,1.70927341]
[1625492956950,2.0511678,33699.0,33698.0,1.70927341]
[1625492957051,2.1101678,33699.0,33698.0,1.70927341]
[1625492958100,2.1101678,33699.0,33698.0,1.70536042]
[1625492959051,2.3880278,33699.0,33698.0,1.70536042]
[1625492959152,3.61375299,33699.0,33698.0,0.68214417]
[1625492959252,3.70305299,33699.0,33698.0,0.68214417]
[1625492959503,3.61375299,33699.0,33698.0,0.68214417]
[1625492960554,3.61375299,33699.0,33697.0,0.68700789]
[1625492960956,0.24057544,33698.0,33697.0,0.68700789]
[1625492961056,0.29957544,33698.0,33697.0,0.68700789]
[1625492961256,3.33578585,33698.0,33697.0,0.68700789]
[1625492962613,3.33578585,33698.0,33696.0,1.03051184]
[1625492962614,3.33578585,33698.0,33696.0,0.68689082]
[1625492963012,2.97778014,33697.0,33696.0,0.68689082]
[1625492963214,3.03678014,33697.0,33696.0,0.68689082]
[1625492963313,3.09578014,33697.0,33696.0,0.68689082]
[1625492963516,4.49712128,33697.0,33696.0,0.17082057]
[1625492963914,4.49712128,33697.0,33695.0,5.32397558]
[1625492964615,4.37940172,33696.0,33695.0,5.32397558]
[1625492964717,4.43840172,33696.0,33695.0,5.32397558]
[1625492964816,4.49740172,33696.0,33695.0,5.32397558]
[1625492965171,4.49740172,33696.0,33695.0,5.15314113]
[1625492965869,3.09604221,33696.0,33695.0,4.8115]
[1625492966271,4.49753898,33696.0,33695.0,4.8115]
[1625492966371,4.49753898,33696.0,33695.0,5.15225005]
[1625492967071,4.58643898,33696.0,33695.0,5.15225005]
[1625492967873,4.49753898,33696.0,33695.0,5.15225005]
[1625492969677,4.49753898,33696.0,33695.0,4.8115]
[1625492970027,4.58703898,33696.0,33695.0,4.8115]
[1625492970332,4.58703898,33696.0,33695.0,5.3239361]
[1625492970432,4.49753898,33696.0,33695.0,5.3239361]
[1625492970785,3.09604221,33696.0,33695.0,5.4947844]
[1625492971333,3.09604221,33696.0,33695.0,5.49869839]
[1625492972584,3.09604221,33696.0,33695.0,6.52305921]
[1625492975496,3.09604221,33696.0,33695.0,6.72305921]
[1625492977395,3.35366221,33696.0,33695.0,6.72305921]
[1625492977494,0.37562,33696.0,33695.0,5.01541399]
[1625492978348,0.37562,33696.0,33695.0,5.0115]
[1625492978649,4.756449,33696.0,33695.0,5.69476149]
[1625492979353,4.756449,33696.0,33695.0,6.0357343]
[1625492979452,4.756449,33696.0,33695.0,5.35247281]
[1625492979701,4.756449,33696.0,33695.0,5.35638739]
[1625492979901,4.756449,33696.0,33695.0,5.01541458]
[1625492980352,4.756449,33696.0,33695.0,5.697761]
[1625492980705,4.77230357,33696.0,33695.0,5.697761]
[1625492980803,5.29816255,33696.0,33695.0,5.52791365]
[1625492981905,5.29816255,33696.0,33695.0,0.71641365]
[1625492982106,5.29816255,33696.0,33695.0,1.05811629]
[1625492982307,5.29816255,33696.0,33695.0,1.05420171]
[1625492982509,5.29816255,33696.0,33695.0,0.71260378]
[1625492982809,5.29816255,33696.0,33695.0,0.37090114]
[1625492982908,5.29816255,33696.0,33695.0,0.37481592]
[1625492983610,5.29816255,33696.0,33695.0,1.05828565]
[1625492983960,5.29816255,33696.0,33695.0,0.71654737]
[1625492984210,5.29816255,33696.0,33695.0,0.71263259]
[1625492984411,5.29816255,33696.0,33695.0,0.37088424]
[1625492984512,5.29816255,33696.0,33695.0,0.37479914]
[1625492985414,5.29816255,33696.0,33695.0,0.31569914]
[1625492985515,5.29816255,33696.0,33695.0,0.29789914]
[1625492985693,5.29816255,33696.0,33695.0,0.7832291]
[1625492985745,5.29816255,33696.0,33695.0,0.7181291]
[1625492985819,9.71886255,33696.0,33695.0,0.5727291]
[1625492986046,9.71886255,33696.0,33695.0,0.5234291]
[1625492986516,9.71886255,33696.0,33695.0,0.3197291]
[1625492986616,9.71886255,33696.0,33695.0,0.2862291]
[1625492986718,10.21886255,33696.0,33695.0,0.2862291]
[1625492986820,11.79634279,33696.0,33694.0,0.17087587]
[1625492986943,0.0877,33695.0,33694.0,0.17087587]
[1625492987018,0.1467,33695.0,33694.0,0.17087587]
[1625492987116,0.44627544,33695.0,33694.0,0.17087587]
[1625492987218,0.46214048,33695.0,33694.0,0.17087587]
[1625492987568,0.96214048,33695.0,33694.0,0.14737587]
[1625492987667,0.96214048,33695.0,33694.0,0.11047587]
[1625492987871,0.96214048,33695.0,33694.0,0.10347587]
[1625492987969,0.96214048,33695.0,33694.0,0.05297587]
[1625492988222,0.96214048,33695.0,33693.0,0.5126276]
[1625492988223,6.92042287,33695.0,33686.0,0.68478354]
[1625492988526,0.01586593,33694.0,33687.0,0.00391274]
[1625492988723,1.57705612,33691.0,33687.0,0.00391274]
[1625492988825,1.63605612,33691.0,33687.0,0.00391274]
[1625492988922,1.69505612,33691.0,33687.0,0.00391274]
[1625492989073,4.38094594,33688.0,33686.0,0.68887087]
[1625492989173,0.72172632,33687.0,33686.0,0.68887087]
[1625492989272,0.78072632,33687.0,33686.0,0.68887087]
[1625492989373,0.83972632,33687.0,33686.0,0.68495816]
[1625492989574,0.83972632,33687.0,33686.0,0.68887082]
[1625492989879,3.81790284,33687.0,33686.0,0.68887082]
[1625492990537,4.03307284,33687.0,33686.0,0.88887082]
[1625492991333,4.03307284,33687.0,33686.0,0.20391266]
[1625492992484,4.03307284,33687.0,33686.0,0.88761039]
[1625492992743,4.03307284,33687.0,33686.0,0.20391266]
[1625492993089,4.03307284,33687.0,33686.0,0.2]
[1625492993354,4.03307284,33687.0,33686.0,0.2039126]
[1625492994062,2.59163607,33687.0,33686.0,0.8876112]
[1625492994493,2.59163607,33687.0,33686.0,1.91275061]
[1625492994941,1.54052525,33687.0,33686.0,1.91275061]
[1625492995394,2.59087756,33687.0,33686.0,1.91275061]
[1625492995795,1.54052525,33687.0,33686.0,1.91275061]
[1625492996947,1.54052525,33687.0,33686.0,2.18697061]
[1625492997069,1.48152525,33687.0,33686.0,2.18697061]
[1625492997249,1.42252525,33687.0,33686.0,2.18697061]
[1625492997562,0.72172632,33687.0,33686.0,4.74560238]
[1625492998100,0.78072632,33687.0,33686.0,4.74560238]
[1625492999153,0.72172632,33687.0,33686.0,4.74560238]
[1625493000053,0.83972632,33687.0,33686.0,4.74560238]
[1625493000252,0.78072632,33687.0,33686.0,4.74560238]
[1625493000354,0.83972632,33687.0,33686.0,4.74560238]
[1625493000605,0.92741024,33687.0,33686.0,3.38099877]
[1625493001734,0.83972632,33687.0,33686.0,4.74562856]
[1625493003868,0.83972632,33687.0,33686.0,2.18697061]
[1625493004159,0.83972632,33687.0,33686.0,3.10359914]
[1625493004511,0.83972632,33687.0,33686.0,1.90883801]
[1625493004812,1.75167168,33687.0,33686.0,1.90883801]
[1625493005735,2.80208441,33687.0,33686.0,0.8836986]
[1625493006015,2.80208441,33687.0,33686.0,0.88761001]
[1625493006117,4.02755719,33687.0,33686.0,0.20391141]
[1625493006968,5.42799492,33687.0,33686.0,0.20391141]
[1625493008928,5.42799492,33687.0,33686.0,0.2]
[1625493009022,5.44383053,33687.0,33686.0,0.2]
[1625493015687,1.06720193,33687.0,33686.0,0.2]
[1625493016138,5.44352671,33687.0,33686.0,0.2]
[1625493019397,5.4276911,33687.0,33686.0,0.2]
[1625493020199,5.44353081,33687.0,33686.0,0.2]
[1625493020500,5.4276911,33687.0,33686.0,0.2]
[1625493021304,5.443531,33687.0,33686.0,0.2]
[1625493023408,5.533431,33687.0,33686.0,0.2]
[1625493023959,5.443531,33687.0,33686.0,0.2]
[1625493024735,5.443531,33687.0,33681.0,0.68413416]
[1625493024736,5.443531,33687.0,33681.0,0.57880945]
[1625493024761,7.01943114,33687.0,33677.0,0.68510214]
[1625493024861,0.118,33686.0,33677.0,0.49110214]
[1625493025060,0.01584269,33685.0,33677.0,0.49110214]
[1625493025211,0.13384269,33685.0,33677.0,0.49110214]
[1625493025345,0.63384269,33685.0,33677.0,0.49110214]
[1625493025430,0.72172632,33678.0,33677.0,0.49110214]
[1625493025512,0.72172632,33678.0,33673.0,1.37020429]
[1625493025513,4.6321263,33678.0,33673.0,1.02876513]
[1625493025711,4.7501263,33678.0,33673.0,1.02876513]
[1625493025912,4.7501263,33678.0,33668.0,1.02912392]
[1625493025913,3.6756069,33674.0,33668.0,1.02912392]
[1625493026011,3.7346069,33674.0,33668.0,1.02912392]
[1625493026111,3.7936069,33674.0,33668.0,1.02912392]
[1625493026363,1.05020956,33671.0,33668.0,1.02912392]
[1625493026461,1.30453956,33671.0,33668.0,1.02912392]
[1625493026561,1.36353956,33671.0,33668.0,1.02912392]
[1625493026662,1.42253956,33671.0,33668.0,1.02912392]
[1625493027062,1.05020537,33670.0,33668.0,1.02912392]
[1625493027165,1.16820537,33670.0,33668.0,1.02912392]
[1625493027365,0.48115088,33669.0,33668.0,1.02912392]
[1625493027465,0.54015088,33669.0,33668.0,1.02912392]
[1625493027565,0.59915088,33669.0,33668.0,1.02912392]
[1625493027916,0.59915088,33669.0,33667.0,1.02849514]
[1625493028422,0.08761824,33668.0,33666.0,1.02871985]
[1625493028618,0.20561824,33668.0,33666.0,1.02871985]
[1625493028819,0.20561824,33668.0,33667.0,1.03243963]
[1625493029019,0.00561824,33668.0,33667.0,1.03243963]
[1625493029371,0.00561824,33668.0,33667.0,1.0285196]
[1625493029721,0.06461824,33668.0,33667.0,1.0285196]
[1625493029824,0.00561824,33668.0,33667.0,1.0285196]
[1625493029921,0.00561824,33668.0,33666.0,1.02820529]
[1625493030120,0.06461824,33668.0,33666.0,1.02820529]
[1625493030468,0.06461824,33668.0,33665.0,1.02840524]